bitfinex/quotes_BTCUSD_20220731
["timestamp","ask_amount","ask_price","bid_price","bid_amount"]
[1659258613662,2.33854977,23630.0,23629.0,1.32357433]
[1659258613933,2.33854977,23630.0,23629.0,1.40357433]
[1659258614180,2.33854977,23630.0,23629.0,1.40348295]
[1659258615292,2.33854977,23630.0,23629.0,1.32348295]
[1659258615988,2.33854977,23630.0,23629.0,1.40612643]
[1659258616199,2.33854977,23630.0,23629.0,1.39348295]
[1659258617343,2.33854977,23630.0,23629.0,1.32348295]
[1659258617889,2.33854977,23630.0,23629.0,1.39348295]
[1659258619243,2.33854977,23630.0,23629.0,1.32348295]
[1659258619920,2.33854977,23630.0,23629.0,1.39848295]
[1659258621248,2.33854977,23630.0,23629.0,1.32348295]
[1659258621929,2.33854977,23630.0,23629.0,1.40348295]
[1659258623291,2.33854977,23630.0,23629.0,1.32348295]
[1659258624014,2.33854977,23630.0,23629.0,1.40348295]
[1659258625156,2.33854977,23630.0,23629.0,1.32348295]
[1659258625913,2.33854977,23630.0,23629.0,1.40348295]
[1659258627297,2.33854977,23630.0,23629.0,1.32348295]
[1659258630681,2.33416121,23630.0,23629.0,1.32348295]
[1659258630903,2.32853965,23630.0,23629.0,1.32348295]
[1659258632286,2.32853965,23630.0,23629.0,1.40348295]
[1659258633687,2.32853965,23630.0,23629.0,1.32348295]
[1659258633925,2.32853965,23630.0,23629.0,1.40348295]
[1659258634167,2.32853965,23630.0,23626.0,0.4229]
[1659258634168,0.05142493,23626.0,23625.0,0.1]
[1659258634431,0.05142493,23626.0,23619.0,0.45693161]
[1659258634432,0.0803466,23620.0,23619.0,0.40989758]
[1659258634661,0.0803466,23620.0,23615.0,0.65430033]
[1659258634662,0.0303466,23619.0,23615.0,0.65430033]
[1659258634894,0.05,23616.0,23615.0,0.45593575]
[1659258635160,0.07305487,23616.0,23615.0,0.40725733]
[1659258635635,0.10487487,23616.0,23615.0,0.40725733]
[1659258635876,0.29183387,23616.0,23615.0,0.40725733]
[1659258636123,0.07305487,23616.0,23615.0,0.40725733]
[1659258636589,0.07305487,23616.0,23615.0,0.46725733]
[1659258637351,0.04270827,23616.0,23615.0,0.46725733]
[1659258637584,0.03181,23622.0,23615.0,0.86725733]
[1659258637804,0.304771,23621.0,23616.0,0.75725733]
[1659258638035,0.03182,23620.0,23617.0,0.40725733]
[1659258638485,0.304771,23619.0,23617.0,0.40725733]
[1659258638715,0.00185486,23619.0,23617.0,0.41454906]
[1659258638981,0.07981,23622.0,23618.0,0.40725733]
[1659258639206,0.304771,23621.0,23618.0,0.40725733]
[1659258639436,0.03182,23620.0,23618.0,0.40725733]
[1659258639878,0.06834802,23620.0,23618.0,0.40725733]
[1659258640577,0.35212702,23620.0,23618.0,0.40725733]
[1659258640857,0.34747927,23619.0,23618.0,0.40725733]
[1659258641082,0.07452827,23619.0,23618.0,0.40725733]
[1659258641534,0.26148727,23619.0,23618.0,0.40725733]
[1659258641764,0.04270827,23619.0,23618.0,0.40725733]
[1659258641985,0.07452827,23619.0,23618.0,0.40725733]
[1659258642212,0.04270827,23619.0,23618.0,0.40725733]
[1659258642446,0.35247927,23619.0,23618.0,0.47525733]
[1659258642684,0.07952827,23619.0,23618.0,0.47525733]
[1659258642926,0.04770827,23619.0,23618.0,0.47525733]
[1659258643172,0.26648727,23619.0,23618.0,0.47525733]
[1659258643435,0.04770827,23619.0,23618.0,0.47525733]
[1659258643869,0.04270827,23619.0,23618.0,0.40725733]
[1659258644097,0.34747927,23619.0,23618.0,0.40725733]
[1659258644330,0.04270827,23619.0,23618.0,0.40725733]
[1659258644838,0.26148727,23619.0,23618.0,0.40712188]
[1659258645287,0.04770827,23619.0,23618.0,0.47512188]
[1659258646187,0.08423629,23619.0,23618.0,0.47512188]
[1659258646418,0.08423629,23619.0,23618.0,0.55212188]
[1659258647132,0.07923629,23619.0,23618.0,0.40712188]
[1659258647365,0.304771,23621.0,23618.0,0.40712188]
[1659258648273,0.03652802,23620.0,23618.0,0.40712188]
[1659258650393,0.27630702,23620.0,23618.0,0.48412188]
[1659258650641,0.05752802,23620.0,23619.0,0.40725733]
[1659258650869,0.021,23620.0,23619.0,0.40725733]
[1659258651774,0.304771,23620.0,23619.0,0.40725733]
[1659258652486,0.325771,23620.0,23619.0,0.48425733]
[1659258652713,0.021,23620.0,23619.0,0.48425733]
[1659258652970,0.021,23620.0,23619.0,0.48436553]
[1659258653212,0.021,23620.0,23619.0,0.78436553]
[1659258653669,0.021,23620.0,23619.0,0.70736553]
[1659258653891,0.3,23624.0,23619.0,0.75736553]
[1659258654121,0.03181,23626.0,23620.0,0.40725733]
[1659258654122,0.304771,23623.0,23620.0,0.40725733]
[1659258654358,0.218779,23622.0,23620.0,0.42691073]
[1659258654640,3.26133965,23630.0,23623.0,0.0196534]
[1659258654641,0.3621,23629.0,23623.0,0.0196534]
[1659258654869,0.3939,23629.0,23624.0,0.40725733]
[1659258655118,0.304771,23628.0,23624.0,0.40725733]
[1659258655342,0.304771,23628.0,23625.0,0.00010817]
[1659258655575,0.304771,23628.0,23625.0,0.4073655]
[1659258655824,0.218779,23627.0,23625.0,0.40725733]
[1659258656043,0.304771,23626.0,23625.0,0.40725733]
[1659258656586,0.304771,23626.0,23625.0,0.40944273]
[1659258656802,0.21887011,23627.0,23625.0,0.40944273]
[1659258657267,0.21887011,23627.0,23626.0,0.40725733]
[1659258658448,0.29787011,23627.0,23626.0,0.40725733]
[1659258658695,0.07909111,23627.0,23626.0,0.40725733]
[1659258659837,9.111e-05,23627.0,23626.0,0.40725733]
[1659258660555,9.111e-05,23627.0,23626.0,0.48525733]
[1659258660771,2.97263076,23630.0,23626.0,0.48525733]
[1659258661010,0.304771,23629.0,23627.0,0.40725733]
[1659258661238,2.97263076,23630.0,23627.0,0.40725733]
[1659258661239,0.218779,23628.0,23627.0,0.40725733]
[1659258662393,0.218779,23628.0,23627.0,0.48225733]
[1659258662394,0.230779,23628.0,23627.0,0.48225733]
[1659258662871,0.26545216,23628.0,23627.0,0.48225733]
[1659258663088,0.230779,23628.0,23627.0,0.48225733]
[1659258663811,0.218779,23628.0,23627.0,0.40725733]
[1659258664509,0.230779,23628.0,23627.0,0.48225733]
[1659258665192,0.26545216,23628.0,23627.0,0.48225733]
[1659258665431,0.230779,23628.0,23627.0,0.48225733]
[1659258665911,0.218779,23628.0,23627.0,0.40725733]
[1659258666390,0.230779,23628.0,23627.0,0.48607429]
[1659258666631,0.230779,23628.0,23627.0,0.48225733]
[1659258667820,0.218779,23628.0,23627.0,0.40725733]
[1659258668510,0.230779,23628.0,23627.0,0.48225733]
[1659258668945,0.012,23628.0,23627.0,0.48225733]
[1659258669200,0.316771,23628.0,23627.0,0.48225733]
[1659258669418,0.012,23628.0,23627.0,0.48225733]
[1659258669653,0.316771,23628.0,23627.0,0.48225733]
[1659258669868,0.304771,23628.0,23627.0,0.40725733]
[1659258670363,0.304771,23628.0,23627.0,0.46025733]
[1659258671079,2.32863076,23630.0,23627.0,0.46096416]
[1659258671313,0.654771,23629.0,23628.0,0.40725733]
[1659258671540,0.304771,23629.0,23628.0,0.40725733]
[1659258672440,0.372771,23629.0,23628.0,0.42825733]
[1659258673816,0.304771,23629.0,23628.0,0.40725733]
[1659258674531,0.40929902,23629.0,23628.0,0.42825733]
[1659258674974,0.40929902,23629.0,23628.0,0.021]
[1659258675665,0.40929902,23629.0,23623.0,0.03205811]
[1659258675880,0.218779,23628.0,23624.0,0.40725733]
[1659258677236,0.218779,23628.0,23625.0,0.0007069]
[1659258677454,0.218779,23628.0,23625.0,0.41525596]
[1659258677677,0.218779,23628.0,23625.0,0.40796423]
[1659258678138,0.21869114,23628.0,23625.0,0.40796423]
[1659258678363,0.21869114,23628.0,23625.0,0.41454906]
[1659258678603,0.304771,23627.0,23626.0,0.05]
[1659258678835,0.218705,23628.0,23625.0,0.46754906]
[1659258679059,0.218705,23628.0,23625.0,0.46096423]
[1659258679354,0.33652802,23629.0,23625.0,0.46096423]
[1659258679355,0.304685,23627.0,23625.0,0.46096423]
[1659258679594,0.218791,23628.0,23625.0,0.46025733]
[1659258679825,0.218791,23628.0,23625.0,0.40725733]
[1659258680044,0.304685,23627.0,23625.0,0.40725733]
[1659258680264,0.218791,23626.0,23625.0,0.41454906]
[1659258680707,0.304685,23627.0,23625.0,0.40725733]
[1659258681657,0.304685,23627.0,23625.0,0.41454906]
[1659258681914,0.304685,23627.0,23625.0,0.40725733]
[1659258682147,0.304685,23627.0,23625.0,0.41454906]
[1659258682359,0.384685,23627.0,23625.0,0.41454906]
[1659258682590,0.218791,23626.0,23625.0,0.41454906]
[1659258683717,0.218791,23626.0,23625.0,0.40725733]
[1659258685323,0.291791,23626.0,23625.0,0.42925733]
[1659258686479,0.364791,23626.0,23625.0,0.45125733]
[1659258686719,0.291791,23626.0,23625.0,0.42925733]
[1659258687668,0.291791,23626.0,23625.0,0.40725733]
[1659258687669,0.218791,23626.0,23625.0,0.40725733]
[1659258688102,2.32863076,23630.0,23626.0,0.0196534]
[1659258688348,2.32863076,23630.0,23627.0,0.40725733]
[1659258688568,0.304685,23629.0,23627.0,0.40725733]
[1659258688786,0.218791,23628.0,23627.0,0.40725733]
[1659258689010,2.32863076,23630.0,23627.0,0.40725733]
[1659258689253,0.304685,23629.0,23627.0,0.40725733]
[1659258689469,0.218791,23628.0,23627.0,0.41454906]
[1659258689702,2.32863076,23630.0,23627.0,0.41454906]
[1659258689926,0.304685,23629.0,23628.0,0.40725733]
[1659258691495,0.34121302,23629.0,23628.0,0.40725733]
[1659258692374,0.304685,23629.0,23628.0,0.48025733]
[1659258693689,0.304685,23629.0,23628.0,0.40725733]
[1659258694351,0.304685,23629.0,23628.0,0.48025733]
[1659258694767,0.304685,23629.0,23628.0,0.48042594]
[1659258694984,0.304685,23629.0,23628.0,0.48025733]
[1659258695676,0.304685,23629.0,23628.0,0.40725733]
[1659258696168,0.304685,23629.0,23628.0,0.40742594]
[1659258696402,0.304685,23629.0,23628.0,0.48025733]
[1659258697324,2.32863076,23630.0,23628.0,0.48025733]
[1659258697325,2.32863076,23630.0,23628.0,0.78025733]
[1659258697558,2.32863076,23630.0,23629.0,0.40725733]
[1659258698248,2.63331576,23630.0,23629.0,0.40725733]
[1659258698517,2.40763076,23630.0,23629.0,0.40725733]
[1659258699660,2.71231576,23630.0,23629.0,0.40725733]
[1659258699889,2.63331576,23630.0,23629.0,0.40725733]
[1659258700593,2.71231576,23630.0,23629.0,0.40725733]
[1659258701313,2.71221424,23630.0,23629.0,0.40725733]
[1659258701759,2.63321424,23630.0,23629.0,0.40725733]
[1659258702502,2.71221424,23630.0,23629.0,0.40725733]
[1659258703864,2.63321424,23630.0,23629.0,0.40725733]
[1659258704538,2.71221424,23630.0,23629.0,0.40725733]
[1659258705702,2.63321424,23630.0,23629.0,0.40725733]
[1659258706425,2.71221424,23630.0,23629.0,0.40725733]
[1659258707776,2.63321424,23630.0,23629.0,0.40725733]
[1659258708219,2.63321424,23630.0,23629.0,0.40742593]
[1659258708450,2.71221424,23630.0,23629.0,0.40742593]
[1659258708708,2.71221424,23630.0,23629.0,0.40725733]
[1659258709392,2.40752924,23630.0,23629.0,0.40742593]
[1659258709610,2.40752924,23630.0,23629.0,0.40725733]
[1659258709841,2.32852924,23630.0,23629.0,0.40725733]
[1659258710352,2.32852924,23630.0,23629.0,0.70725733]
[1659258710573,2.40752924,23630.0,23629.0,0.40725733]
[1659258711020,2.40752924,23630.0,23629.0,0.70742593]
[1659258711245,2.40752924,23630.0,23629.0,0.70725733]
[1659258711690,2.40752924,23630.0,23629.0,0.80725733]
[1659258711906,2.40752924,23630.0,23629.0,0.75725733]
[1659258712121,2.40752924,23630.0,23629.0,0.70725733]
[1659258712350,2.44405726,23630.0,23629.0,0.75725733]
[1659258712638,2.40752924,23630.0,23629.0,0.75725733]
[1659258712864,2.40752924,23630.0,23629.0,0.70725733]
[1659258713084,2.40752924,23630.0,23629.0,0.40725733]
[1659258713769,2.32852924,23630.0,23629.0,0.40725733]
[1659258714285,2.63321424,23630.0,23629.0,0.40725733]
[1659258714484,2.7468874,23630.0,23629.0,0.40725733]
[1659258714705,2.44405726,23630.0,23629.0,0.40725733]
[1659258714912,2.71221424,23630.0,23629.0,0.41138173]
[1659258715229,2.40752924,23630.0,23629.0,0.40725733]
[1659258715685,2.32852924,23630.0,23629.0,0.40725733]
[1659258715910,2.32852924,23630.0,23629.0,0.71138173]
[1659258716131,2.36505726,23630.0,23629.0,0.40725733]
[1659258716374,2.44405726,23630.0,23629.0,0.40725733]
[1659258716648,2.74874226,23630.0,23629.0,0.40725733]
[1659258716855,2.40752924,23630.0,23629.0,0.40725733]
[1659258717719,2.44405726,23630.0,23629.0,0.40725733]
[1659258717962,2.40752924,23630.0,23629.0,0.40725733]
[1659258718868,2.44405726,23630.0,23629.0,0.40725733]
[1659258719304,2.74874226,23630.0,23629.0,0.40725733]
[1659258719645,2.66974226,23630.0,23629.0,0.40725733]
[1659258720540,2.74874226,23630.0,23629.0,0.40725733]
[1659258721302,2.71221424,23630.0,23629.0,0.40725733]
[1659258721776,2.63321424,23630.0,23629.0,0.40725733]
[1659258722861,2.63309732,23630.0,23629.0,0.40725733]
[1659258724150,2.71209732,23630.0,23629.0,0.40725733]
[1659258724804,2.74862534,23630.0,23629.0,0.40725733]
[1659258725217,2.82762534,23630.0,23629.0,0.40725733]
[1659258725418,2.63309732,23630.0,23629.0,0.41138173]
[1659258726092,2.66962534,23630.0,23629.0,0.40725733]
[1659258726310,2.71209732,23630.0,23629.0,0.40725733]
[1659258726995,2.63309732,23630.0,23629.0,0.40725733]
[1659258728373,2.66962534,23630.0,23629.0,0.40725733]
[1659258728789,2.71209732,23630.0,23629.0,0.40725733]
[1659258729207,2.71209732,23630.0,23629.0,0.41138173]
[1659258729426,2.71209732,23630.0,23629.0,0.40725733]
[1659258730089,2.63309732,23630.0,23629.0,0.40725733]
[1659258730307,2.66777048,23630.0,23629.0,0.48525733]
[1659258731227,2.63309732,23630.0,23629.0,0.48525733]
[1659258731460,2.66777048,23630.0,23629.0,0.48525733]
[1659258731655,2.63309732,23630.0,23629.0,0.48525733]
[1659258731879,2.63309732,23630.0,23629.0,0.40725733]
[1659258732250,2.63495218,23630.0,23629.0,0.40725733]
[1659258732452,2.71209732,23630.0,23629.0,0.40725733]
[1659258732697,2.71209732,23630.0,23629.0,0.41138173]
[1659258732868,2.71209732,23630.0,23629.0,0.40725733]
[1659258733507,2.74677048,23630.0,23629.0,0.40725733]
[1659258733706,2.71209732,23630.0,23629.0,0.40725733]
[1659258733931,2.63309732,23630.0,23629.0,0.40725733]
[1659258734472,2.40741232,23630.0,23629.0,0.40725733]
[1659258734610,2.44394034,23630.0,23629.0,0.40725733]
[1659258734840,2.74862534,23630.0,23629.0,0.40725733]
[1659258735038,2.71209732,23630.0,23629.0,0.40746355]
[1659258735280,2.71209732,23630.0,23629.0,0.40725733]
[1659258735652,2.74862534,23630.0,23629.0,0.40725733]
[1659258735871,2.71209732,23630.0,23629.0,0.40725733]
[1659258736455,2.71209732,23630.0,23629.0,0.48525733]
[1659258736665,2.74677048,23630.0,23629.0,0.48525733]
[1659258736875,2.71209732,23630.0,23629.0,0.48525733]
[1659258737400,2.71209732,23630.0,23629.0,0.078]
[1659258737634,3.11935465,23630.0,23623.0,0.0196534]
[1659258737874,0.0303466,23628.0,23619.0,0.5966]
[1659258738118,0.33178,23627.0,23620.0,0.40725733]
[1659258738352,0.218791,23626.0,23620.0,0.40725733]
[1659258738565,0.336465,23625.0,23621.0,0.05]
[1659258738781,0.25346416,23624.0,23621.0,0.00729173]
[1659258739007,0.304685,23625.0,23620.0,0.41454906]
[1659258739266,0.304685,23625.0,23620.0,0.40725733]
[1659258739497,0.218791,23624.0,23620.0,0.40725733]
[1659258739804,0.34121302,23623.0,23620.0,0.40725733]
[1659258740040,0.218791,23622.0,23620.0,0.41454906]
[1659258740276,0.218791,23622.0,23620.0,0.41829693]
[1659258740504,0.218791,23622.0,23620.0,0.41454906]
[1659258740738,0.34121302,23623.0,23620.0,0.41454906]
[1659258741009,0.34121302,23623.0,23620.0,0.40725733]
[1659258741714,0.03652802,23623.0,23620.0,0.41454906]
[1659258741828,0.34121302,23623.0,23620.0,0.41829693]
[1659258742173,0.34121302,23623.0,23620.0,0.41454906]
[1659258742444,0.218791,23622.0,23620.0,0.40725733]
[1659258744003,0.218791,23622.0,23620.0,0.41829693]
[1659258744217,0.218791,23622.0,23620.0,0.41454906]
[1659258744441,0.267791,23622.0,23620.0,0.41454906]
[1659258745372,0.267791,23622.0,23620.0,0.41829693]
[1659258745807,0.218791,23622.0,23620.0,0.41454906]
[1659258746019,0.03652802,23623.0,23620.0,0.41454906]
[1659258746290,0.304685,23622.0,23620.0,0.41454906]
[1659258746511,0.353685,23622.0,23620.0,0.41454906]
[1659258746729,0.353685,23622.0,23620.0,0.40725733]
[1659258747713,0.304685,23622.0,23620.0,0.40725733]
[1659258748584,0.304685,23622.0,23618.0,0.40725733]
[1659258748838,0.03652802,23623.0,23618.0,0.40725733]
[1659258749060,0.34121302,23623.0,23618.0,0.40725733]
[1659258749283,0.049,23622.0,23618.0,0.40725733]
[1659258749522,0.049,23622.0,23618.0,0.45725733]
[1659258750583,0.03652802,23623.0,23618.0,0.45725733]
[1659258751741,0.03652802,23623.0,23619.0,0.3]
[1659258751964,0.40725733,23627.0,23619.0,0.72691073]
[1659258752201,2.61471232,23630.0,23623.0,0.0196534]
[1659258752438,0.304685,23627.0,23623.0,0.0196534]
[1659258752732,0.218791,23626.0,23623.0,0.0196534]
[1659258752957,0.304685,23625.0,23623.0,0.02694513]
[1659258753196,0.78805733,23628.0,23623.0,0.0196534]
[1659258753443,0.304685,23627.0,23623.0,0.02694513]
[1659258753665,0.218791,23626.0,23623.0,0.02694513]
[1659258753949,0.304685,23625.0,23624.0,0.05]
[1659258754165,0.304685,23625.0,23623.0,0.02694513]
[1659258754387,0.062,23626.0,23623.0,0.02694513]
[1659258754615,0.304685,23625.0,23623.0,0.02694513]
[1659258754835,0.304685,23625.0,23623.0,0.0196534]
[1659258755062,0.218791,23627.0,23623.0,0.0196534]
[1659258755280,0.518791,23627.0,23623.0,0.0196534]
[1659258755512,0.34121302,23626.0,23623.0,0.0196534]
[1659258755708,0.218791,23625.0,23623.0,0.0196534]
[1659258756530,0.278791,23625.0,23623.0,0.0196534]
[1659258756760,0.06,23625.0,23623.0,0.0196534]
[1659258756986,0.06,23625.0,23623.0,0.0198401]
[1659258757203,0.06,23625.0,23623.0,0.0196534]
[1659258757540,0.364685,23625.0,23623.0,0.0196534]
[1659258757933,0.304685,23625.0,23623.0,0.0196534]
[1659258758506,0.364685,23625.0,23623.0,0.0196534]
[1659258759902,0.364685,23625.0,23623.0,0.0198401]
[1659258760282,0.218791,23624.0,23623.0,0.0198401]
[1659258760507,0.218791,23624.0,23623.0,0.0196534]
[1659258761570,0.39557,23629.0,23623.0,0.0196534]
[1659258761775,0.06,23625.0,23624.0,0.05]
[1659258761978,0.06,23625.0,23623.0,0.0196534]
[1659258762116,0.06,23625.0,23623.0,0.02706287]
[1659258762315,0.338791,23625.0,23623.0,0.02706287]
[1659258762600,0.304685,23624.0,23623.0,0.0196534]
[1659258762827,0.304685,23624.0,23620.0,0.40725733]
[1659258763035,0.12,23625.0,23620.0,0.40725733]
[1659258763253,0.83194233,23625.0,23619.0,0.8505]
[1659258763369,0.218791,23624.0,23620.0,0.05]
[1659258763568,0.52725733,23625.0,23619.0,0.55779173]
[1659258763569,0.304685,23623.0,23619.0,0.55779173]
[1659258763811,0.03652802,23623.0,23620.0,0.00011775]
[1659258764284,0.08952802,23623.0,23620.0,0.00011775]
[1659258764507,0.08952802,23623.0,23619.0,0.55779173]
[1659258764730,0.08952802,23623.0,23619.0,0.6005]
[1659258765584,0.08952802,23623.0,23620.0,7.14e-05]
[1659258765827,0.03652802,23623.0,23620.0,0.3]
[1659258766230,0.03652802,23623.0,23621.0,0.05]
[1659258766440,0.304685,23622.0,23620.0,0.00729173]
[1659258766658,0.03652802,23623.0,23619.0,0.6505]
[1659258766880,0.03652802,23623.0,23619.0,0.6005]
[1659258767102,0.03652802,23623.0,23619.0,0.60043257]
[1659258767638,0.304685,23622.0,23619.0,0.60043257]
[1659258767874,0.03652802,23623.0,23619.0,0.60043257]
[1659258768105,0.304685,23622.0,23619.0,0.60043257]
[1659258768327,0.03652802,23623.0,23619.0,0.60043257]
[1659258768571,0.304685,23622.0,23619.0,0.60043257]
[1659258768805,0.03652802,23623.0,23619.0,0.5505]
[1659258769039,0.304685,23622.0,23619.0,0.5505]
[1659258769263,0.08952802,23623.0,23619.0,0.55779173]
[1659258769482,0.304685,23622.0,23619.0,0.55779173]
[1659258769705,0.08952802,23623.0,23619.0,0.55779173]
[1659258769946,0.08952802,23623.0,23619.0,0.5505]
[1659258770402,0.08952802,23623.0,23619.0,0.55779173]
[1659258770660,0.304685,23622.0,23619.0,0.5505]
[1659258770884,0.304685,23622.0,23620.0,0.05]
[1659258771112,0.304685,23622.0,23619.0,0.5505]
[1659258771337,0.363685,23622.0,23619.0,0.5505]
[1659258771556,0.363685,23622.0,23620.0,0.35377526]
[1659258771557,0.059,23622.0,23620.0,0.35377526]
[1659258771795,0.059,23622.0,23620.0,0.76103259]
[1659258772044,0.3,23627.0,23621.0,0.40725733]
[1659258772267,0.304685,23626.0,23622.0,0.3]
[1659258772486,0.218791,23625.0,23622.0,0.3]
[1659258772710,0.304685,23624.0,23623.0,0.00025657]
[1659258772924,0.304685,23624.0,23622.0,0.3]
[1659258773182,0.218791,23623.0,23622.0,0.3]
[1659258773425,0.049,23624.0,23621.0,0.40725733]
[1659258773650,0.304685,23623.0,23622.0,0.3]
[1659258773895,0.049,23624.0,23622.0,0.00025658]
[1659258774118,0.304685,23623.0,23622.0,0.30025658]
[1659258774334,0.049,23624.0,23622.0,0.30025658]
[1659258774549,0.304685,23623.0,23621.0,0.40725733]
[1659258774775,0.049,23624.0,23621.0,0.40725733]
[1659258774998,0.304685,23623.0,23621.0,0.40725733]
[1659258775209,0.03652802,23624.0,23621.0,0.40725733]
[1659258775447,0.304685,23623.0,23621.0,0.40725733]
[1659258775716,0.08552802,23624.0,23621.0,0.40725733]
[1659258775912,0.304685,23623.0,23621.0,0.41061271]
[1659258776143,0.08552802,23624.0,23621.0,0.00729173]
[1659258776368,0.304685,23623.0,23620.0,0.05]
[1659258776592,0.08552802,23624.0,23620.0,0.3]
[1659258776814,0.08552802,23624.0,23621.0,0.00335538]
[1659258777050,0.08552802,23624.0,23620.0,0.3]
[1659258777267,0.03652802,23624.0,23620.0,0.3]
[1659258777486,0.30431902,23624.0,23620.0,0.3]
[1659258777731,0.304685,23623.0,23621.0,0.05]
[1659258777951,0.304685,23623.0,23620.0,0.30729173]
[1659258778171,0.08552802,23624.0,23620.0,0.3]
[1659258778535,0.08552802,23624.0,23620.0,0.30729173]
[1659258778748,0.03652802,23624.0,23620.0,0.00729173]
[1659258779149,0.218791,23623.0,23619.0,0.6005]
[1659258779352,0.08552802,23624.0,23619.0,0.95775733]
[1659258779554,0.304685,23623.0,23619.0,0.95775733]
[1659258780222,0.08552802,23624.0,23620.0,0.3]
[1659258780223,0.049,23624.0,23620.0,0.3]
[1659258781090,0.8077266,23627.0,23621.0,0.05]
[1659258781324,0.049,23624.0,23620.0,0.00729173]
[1659258781566,0.049,23624.0,23619.0,0.6005]
[1659258781798,0.353685,23624.0,23619.0,0.5505]
[1659258782018,0.049,23624.0,23619.0,0.5505]
[1659258782297,0.049,23624.0,23619.0,0.60779173]
[1659258782744,0.3,23625.0,23619.0,0.60779173]
[1659258782745,0.304685,23623.0,23620.0,0.3]
[1659258782966,0.3,23625.0,23619.0,0.60779173]
[1659258783180,0.304685,23624.0,23619.0,0.60779173]
[1659258783399,0.271791,23623.0,23619.0,0.60779173]
[1659258783617,0.053,23623.0,23619.0,0.60779173]
[1659258783830,0.053,23623.0,23619.0,0.55779173]
[1659258784076,0.03652802,23622.0,23619.0,0.55779173]
[1659258784791,0.03652802,23622.0,23619.0,0.5505]
[1659258784959,0.03652802,23622.0,23620.0,0.00042374]
[1659258785178,0.3778,23626.0,23621.0,0.05]
[1659258785449,0.304685,23624.0,23620.0,0.30042374]
[1659258785674,0.059,23622.0,23620.0,0.32007714]
[1659258786135,0.059,23622.0,23620.0,0.37007714]
[1659258786355,0.059,23622.0,23620.0,0.0196534]
[1659258786356,0.00185486,23621.0,23620.0,0.0196534]
[1659258786578,0.059,23622.0,23620.0,0.37007714]
[1659258787433,0.118,23622.0,23620.0,0.37007714]
[1659258787646,0.11793269,23622.0,23620.0,0.37007714]
[1659258787863,0.78505733,23626.0,23620.0,0.37007714]
[1659258788080,0.304685,23625.0,23620.0,0.37007714]
[1659258788287,0.218791,23624.0,23620.0,0.37007714]
[1659258788517,0.304685,23623.0,23620.0,0.37007714]
[1659258788765,0.78505733,23626.0,23620.0,0.37007714]
[1659258788992,0.304685,23625.0,23620.0,0.37007714]
[1659258789271,0.218791,23624.0,23620.0,0.37007714]
[1659258789491,0.304685,23623.0,23620.0,0.37007714]
[1659258789709,0.4258,23626.0,23620.0,0.77733447]
[1659258789939,0.304685,23625.0,23620.0,0.82733447]
[1659258790163,0.304685,23623.0,23620.0,0.82733447]
[1659258790381,0.4258,23626.0,23621.0,0.40725733]
[1659258790602,0.304685,23625.0,23621.0,0.40725733]
[1659258790817,0.218791,23624.0,23621.0,0.40725733]
[1659258791025,0.6376,23628.0,23621.0,0.40725733]
[1659258791274,0.047,23625.0,23621.0,0.40725733]
[1659258791760,0.218791,23624.0,23622.0,0.3]
[1659258792074,0.218791,23624.0,23623.0,0.0030376]
[1659258792525,0.218791,23624.0,23621.0,0.40725733]
[1659258792755,0.218791,23624.0,23622.0,0.3]
[1659258793188,0.218791,23624.0,23622.0,0.00729173]
[1659258793414,0.304685,23623.0,23621.0,0.40725733]
[1659258793631,0.049,23624.0,23621.0,0.41758691]
[1659258793874,0.353685,23624.0,23621.0,0.41758691]
[1659258795121,0.353685,23624.0,23622.0,0.05]
[1659258795369,0.353685,23624.0,23617.0,0.60264814]
[1659258795590,0.049,23624.0,23619.0,0.3]
[1659258795812,0.049,23624.0,23620.0,0.00729173]
[1659258796261,0.049,23624.0,23618.0,0.78555733]
[1659258796500,0.267791,23624.0,23618.0,0.78555733]
[1659258796708,0.267791,23624.0,23619.0,0.3]
[1659258796964,0.267791,23624.0,23619.0,0.35]
[1659258797181,0.218791,23624.0,23619.0,0.35]
[1659258797412,0.261791,23624.0,23619.0,0.35]
[1659258797646,0.261791,23624.0,23620.0,0.40725733]
[1659258797941,0.261791,23624.0,23621.0,0.00384294]
[1659258798152,8.394e-05,23623.0,23620.0,0.40725733]
[1659258799026,8.394e-05,23623.0,23621.0,0.00384294]
[1659258799434,0.04508394,23623.0,23621.0,0.30384294]
[1659258799660,0.304685,23622.0,23621.0,0.35384294]
[1659258799876,0.04508394,23623.0,23621.0,0.30384294]
[1659258800068,0.304685,23622.0,23621.0,0.30384294]
[1659258800338,0.304685,23622.0,23621.0,0.00384294]
[1659258800580,0.218791,23622.0,23621.0,0.00384294]
[1659258800818,0.304685,23622.0,23621.0,0.00384294]
[1659258801063,8.394e-05,23623.0,23621.0,0.00019215]
[1659258801271,0.304602,23622.0,23621.0,0.00019215]
[1659258801488,0.266791,23622.0,23621.0,0.00019215]
[1659258801681,0.266791,23622.0,23620.0,0.40725733]
[1659258801799,0.048,23622.0,23620.0,0.40725733]
[1659258802010,0.048,23622.0,23620.0,0.40744949]
[1659258802273,0.048,23622.0,23621.0,0.3]
[1659258802471,0.048,23622.0,23620.0,0.40744949]
[1659258802712,8.394e-05,23623.0,23620.0,0.40725733]
[1659258803418,0.04508394,23623.0,23620.0,0.40725733]
[1659258804669,8.394e-05,23623.0,23620.0,0.40725733]
[1659258805104,8.394e-05,23623.0,23621.0,0.00384294]
[1659258805327,0.04508394,23623.0,23620.0,0.40725733]
[1659258805560,0.304725,23622.0,23620.0,0.40725733]
[1659258805790,0.03652802,23622.0,23621.0,0.05]
[1659258806011,0.34125302,23622.0,23620.0,0.40725733]
[1659258806232,0.04508394,23623.0,23620.0,0.40725733]
[1659258806447,0.304725,23622.0,23620.0,0.40725733]
[1659258806657,0.304725,23622.0,23620.0,0.41454906]
[1659258806875,0.34125302,23622.0,23620.0,0.40725733]
[1659258807092,0.34125302,23622.0,23620.0,0.41454906]
[1659258807319,8.394e-05,23623.0,23620.0,0.41454906]
[1659258807544,0.048,23622.0,23620.0,0.41454906]
[1659258807997,0.048,23622.0,23621.0,0.6196534]
[1659258808249,0.048,23622.0,23621.0,1.07691073]
[1659258808507,0.048,23622.0,23621.0,1.08163573]
[1659258808724,8.394e-05,23623.0,23621.0,1.13163573]
[1659258808963,8.394e-05,23623.0,23622.0,0.51454906]
[1659258809443,0.05308394,23623.0,23622.0,0.81454906]
[1659258810109,0.05308394,23623.0,23622.0,0.51454906]
[1659258810332,0.05308394,23623.0,23622.0,0.81454906]